fUSD/lending_fUSD_20260422
["ID","MTS","AMOUNT","RATE_DAILY","PERIOD"]
[420952640,1776790745980,409.0,7.644e-05,3]
[420952641,1776790752144,154.0,7.644e-05,3]
[420952642,1776790781532,500.0,7.644e-05,2]
[420952643,1776790801617,480.0,7.644e-05,2]
[420952644,1776790807949,155.0,7.644e-05,3]
[420952645,1776790808919,154.0,7.644e-05,3]
[420952646,1776790846973,159.68584516,7.644e-05,2]
[420952647,1776790851999,163.0,7.644e-05,3]
[420952650,1776790867619,424.0,7.644e-05,3]
[420952651,1776790873963,154.0,7.644e-05,3]
[420952653,1776790893810,2648.79613564,7.492e-05,2]
[420952654,1776790893834,979.19486436,7.492e-05,2]
[420952655,1776790893915,224.762,7.492e-05,2]
[420952656,1776790902497,313.83419515,7.644e-05,2]
[420952658,1776790927634,153.0,7.644e-05,3]
[420952659,1776790929052,154.0,7.644e-05,3]
[420952661,1776790981724,150.0,7.644e-05,2]
[420952662,1776790987048,500.0,7.644e-05,2]
[420952663,1776790987089,500.0,7.644e-05,2]
[420952664,1776790987172,500.0,7.644e-05,2]
[420952665,1776790987243,500.0,7.644e-05,2]
[420952666,1776790987278,218.31765839,7.644e-05,2]
[420952667,1776790987396,402.0,7.644e-05,3]
[420952668,1776790994287,155.0,7.644e-05,3]
[420952669,1776790998994,500.0,7.644e-05,2]
[420952670,1776790999032,500.0,7.644e-05,2]
[420952671,1776790999082,494.09656879,7.644e-05,2]
[420952673,1776791030364,150.0,7.644e-05,2]
[420952674,1776791031739,500.0,7.644e-05,2]
[420952675,1776791041268,300.0,7.644e-05,2]
[420952676,1776791047708,536.0,7.644e-05,3]
[420952677,1776791049557,500.0,7.644e-05,2]
[420952678,1776791049793,1769.80471331,7.545e-05,2]
[420952679,1776791049818,10000.01,7.545e-05,2]
[420952680,1776791049842,10000.01,7.545e-05,2]
[420952681,1776791049865,10000.01,7.545e-05,2]
[420952682,1776791049888,10000.01,7.545e-05,2]
[420952683,1776791049911,5871.91548669,7.545e-05,2]
[420952684,1776791107217,163.0,7.545e-05,3]
[420952685,1776791107251,156.0,7.545e-05,3]
[420952686,1776791107455,150.0,6.879e-05,2]
[420952687,1776791107488,150.0,7.262e-05,2]
[420952688,1776791107565,150.0,6.879e-05,2]
[420952689,1776791107598,150.0,7.262e-05,2]
[420952690,1776791110925,150.0,6.879e-05,2]
[420952691,1776791111107,150.0,6.879e-05,2]
[420952692,1776791113133,150.0,6.879e-05,2]
[420952693,1776791113203,150.0,7.262e-05,2]
[420952694,1776791113606,-300.0,7.643e-05,2]
[420952695,1776791113635,-300.0,7.643e-05,2]
[420952696,1776791113665,-1200.0,7.643e-05,2]
[420952697,1776791113694,-250.0,7.643e-05,2]
[420952698,1776791114556,150.0,6.879e-05,2]
[420952699,1776791114605,150.0,7.262e-05,2]
[420952700,1776791114733,1971.8961,7.545e-05,2]
[420952701,1776791121182,150.0,6.879e-05,2]
[420952702,1776791121214,150.0,7.032e-05,2]
[420952703,1776791121284,150.0,7.185e-05,2]
[420952704,1776791121376,150.0,7.338e-05,2]
[420952705,1776791121427,150.0,7.491e-05,2]
[420952706,1776791121770,154.0,7.545e-05,3]
[420952707,1776791126173,150.0,6.879e-05,2]
[420952708,1776791126321,150.0,6.879e-05,2]
[420952709,1776791126397,150.0,7.262e-05,2]
[420952710,1776791126515,153.10779315,6.879e-05,2]
[420952711,1776791146043,300.53158872,7.4e-05,2]
[420952712,1776791150008,44.0,7.51e-05,7]
[420952713,1776791150033,108.0,7.51e-05,7]
[420952714,1776791150619,152.0,7.51e-05,7]
[420952715,1776791161705,150.0,7.643e-05,2]
[420952716,1776791165345,300.0,7.643e-05,2]
[420952717,1776791168573,665.0,7.545e-05,3]
[420952718,1776791175235,155.0,7.545e-05,3]
[420952719,1776791191591,-163.0,7.545e-05,3]
[420952720,1776791209041,4155.9118,7.545e-05,2]
[420952721,1776791215607,5844.0982,7.545e-05,2]
[420952722,1776791216203,2988.4259,7.545e-05,2]
[420952723,1776791226931,631.0,7.545e-05,3]
[420952724,1776791234178,155.0,7.545e-05,3]
[420952726,1776791287694,600.0,7.545e-05,3]
[420952727,1776791306094,155.0,7.545e-05,3]
[420952728,1776791324489,5470.5841,7.545e-05,2]
[420952729,1776791324518,10000.01,7.545e-05,2]
[420952730,1776791324549,10000.01,7.545e-05,2]
[420952731,1776791324578,10000.01,7.545e-05,2]
[420952732,1776791324606,10000.01,7.545e-05,2]
[420952733,1776791324633,10000.01,7.545e-05,2]
[420952734,1776791324661,10000.01,7.545e-05,2]
[420952735,1776791324688,10000.01,7.545e-05,2]
[420952736,1776791324714,10000.01,7.545e-05,2]
[420952737,1776791324741,10000.01,7.545e-05,2]
[420952738,1776791327298,-152.00298564,7.545e-05,2]
[420952739,1776791368122,-276.0,7.544e-05,2]
[420952740,1776791368144,-150.0,7.544e-05,2]
[420952741,1776791368167,-249.0,7.544e-05,2]
[420952742,1776791368188,-1200.0,7.544e-05,2]
[420952743,1776791368214,-2588.569544,7.545e-05,2]
[420952744,1776791381771,300.0,7.544e-05,2]
[420952745,1776791401180,300.0,7.544e-05,2]
[420952746,1776791401212,1200.0,7.544e-05,2]
[420952747,1776791411177,156.0,7.544e-05,3]
[420952748,1776791411526,644.0,7.544e-05,3]
[420952749,1776791418726,154.0,7.544e-05,3]
[420952754,1776791431532,-5706.49956064,7.545e-05,2]
[420952755,1776791431586,-45122.95109998,7.545e-05,2]
[420952756,1776791431597,-15496.51207928,7.545e-05,2]
[420952757,1776791431639,-307.88526586,7.545e-05,2]
[420952777,1776791437767,-89781.80467481,7.545e-05,2]
[420952778,1776791438028,-478.18025933,7.545e-05,2]
[420952779,1776791438082,-75887.62771607,7.545e-05,2]
[420952780,1776791438095,-48993.48432967,7.545e-05,2]
[420952781,1776791438106,-1826.1386616,7.545e-05,2]
[420952784,1776791440540,-582.44356646,7.545e-05,2]
[420952792,1776791442636,-41507.3316894,7.545e-05,2]
[420952793,1776791442693,-440.03944352,7.545e-05,2]
[420952794,1776791442733,-316.54370578,7.545e-05,2]
[420952795,1776791442813,-800.76947126,7.545e-05,2]
[420952796,1776791442956,-356.68,7.545e-05,2]
[420952814,1776791447733,-5951.44990992,7.545e-05,2]
[420952815,1776791447862,-9.83360472,7.545e-05,2]
[420952816,1776791447874,-22218.98453206,7.545e-05,2]
[420952817,1776791447883,-5787.4139,7.545e-05,2]
[420952818,1776791447893,-249.0,7.545e-05,2]
[420952819,1776791447903,-453.15662945,7.644e-05,2]
[420952820,1776791447913,-150.0,7.644e-05,2]
[420952821,1776791447923,-150.0,7.644e-05,2]
[420952822,1776791447932,-150.0,7.644e-05,2]
[420952823,1776791447944,-152.1122056,7.644e-05,2]
[420952824,1776791447953,-150.0,7.644e-05,2]
[420952825,1776791447962,-150.0,7.644e-05,2]
[420952826,1776791447971,-286.49130564,7.644e-05,2]
[420952827,1776791447980,-243.41394637,7.644e-05,2]
[420952828,1776791447990,-150.0,7.644e-05,2]
[420952829,1776791447999,-5367.27844032,7.644e-05,2]
[420952830,1776791448009,-500.0,7.644e-05,2]
[420952831,1776791448019,-500.0,7.645e-05,2]
[420952832,1776791448028,-255.0,8.298e-05,2]
[420952833,1776791448038,-286.0,8.298e-05,2]
[420952834,1776791448047,-420.0,8.298e-05,2]
[420952835,1776791448056,-192.00088286,8.298e-05,2]
[420952836,1776791448066,-500.0,8.298e-05,2]
[420952837,1776791448075,-500.0,8.299e-05,2]
[420952838,1776791448085,-500.0,8.299e-05,2]
[420952839,1776791448095,-644.0,8.305e-05,3]
[420952840,1776791448105,-500.0,8.408e-05,2]
[420952841,1776791448114,-500.0,8.408e-05,2]
[420952842,1776791448124,-2000.0,8.518e-05,2]
[420952843,1776791448133,-415.8638424,8.672e-05,2]
[420952844,1776791448143,-1600.0,8.892e-05,2]
[420952845,1776791448152,-28908.88452027,9.04e-05,2]
[420952846,1776791448161,-644.0,9.066e-05,3]
[420952847,1776791448170,-367.0,9.128e-05,2]
[420952848,1776791448180,-587.0,9.128e-05,2]
[420952849,1776791448190,-151.76,9.267e-05,2]
[420952850,1776791448199,-2000.0,9.582e-05,2]
[420952851,1776791448209,-151.0,9.733e-05,2]
[420952852,1776791448219,-234.0,9.781e-05,5]
[420952853,1776791448229,-644.0,9.827e-05,3]
[420952854,1776791448239,-500.0,9.836e-05,2]
[420952855,1776791448249,-260.0,9.863e-05,2]
[420952856,1776791448259,-336.62,9.95e-05,2]
[420952857,1776791448269,-1857.82285728,0.0001,2]
[420952858,1776791448278,-4981.31700668,0.0001,2]
[420952859,1776791448287,-4100.31903588,0.0001,2]
[420952860,1776791448297,-4540.81802123,0.0001,2]
[420952861,1776791448306,-4545.14395974,0.0001,2]
[420952862,1776791448316,-16369.93683777,0.0001,2]
[420952863,1776791452189,-152.0,7.599e-05,7]
[420952864,1776791465431,500.0,7.544e-05,2]
[420952865,1776791465967,-152.0,7.607e-05,7]
[420952866,1776791467701,515.0,7.599e-05,3]
[420952867,1776791476259,155.0,7.599e-05,3]
[420952868,1776791495545,10000.01,7.545e-05,2]
[420952869,1776791495572,10000.01,7.545e-05,2]
[420952870,1776791495600,10000.01,7.545e-05,2]
[420952871,1776791495626,10000.01,7.545e-05,2]
[420952872,1776791495653,10000.01,7.545e-05,2]
[420952873,1776791495679,10000.01,7.545e-05,2]
[420952874,1776791495705,10000.01,7.545e-05,2]
[420952875,1776791495738,10000.01,7.545e-05,2]
[420952876,1776791495770,10000.01,7.545e-05,2]
[420952877,1776791495797,10000.01,7.545e-05,2]
[420952878,1776791504260,-5023.77256601,7.545e-05,2]
[420952879,1776791504351,-10000.01,7.545e-05,2]
[420952880,1776791504506,-10000.01,7.545e-05,2]
[420952881,1776791504633,-10000.01,7.545e-05,2]
[420952882,1776791504725,-10000.01,7.545e-05,2]
[420952883,1776791504843,-10000.01,7.545e-05,2]
[420952884,1776791504971,-10000.01,7.545e-05,2]
[420952885,1776791505159,-10000.01,7.545e-05,2]
[420952886,1776791505264,-10000.01,7.545e-05,2]
[420952887,1776791505384,-10000.01,7.545e-05,2]
[420952888,1776791526431,-300.0,7.544e-05,2]
[420952889,1776791526461,-249.0,7.544e-05,2]
[420952890,1776791538503,747.7613583,7.544e-05,2]
[420952891,1776791538547,747.7613583,7.544e-05,2]
[420952892,1776791538593,747.7613583,7.544e-05,2]
[420952893,1776791538663,747.7613583,7.544e-05,2]
[420952894,1776791538702,747.7613583,7.544e-05,2]
[420952895,1776791538737,747.7613583,7.544e-05,2]
[420952896,1776791538774,747.7613583,7.544e-05,2]
[420952897,1776791538810,747.7613583,7.544e-05,2]
[420952898,1776791538845,747.7613583,7.544e-05,2]
[420952899,1776791538884,747.7613583,7.544e-05,2]
[420952900,1776791538926,747.7613583,7.544e-05,2]
[420952901,1776791538976,676.6350587,7.544e-05,2]
[420952902,1776791539004,71.1262996,7.544e-05,2]
[420952903,1776791539039,747.7613583,7.544e-05,2]
[420952904,1776791539078,747.7613583,7.544e-05,2]
[420952905,1776791539121,747.7613583,7.544e-05,2]
[420952906,1776791539162,747.7613583,7.544e-05,2]
[420952907,1776791539492,747.7613583,7.544e-05,2]
[420952908,1776791539544,747.7613583,7.544e-05,2]
[420952909,1776791539587,747.7613583,7.544e-05,2]
[420952910,1776791539625,747.7613583,7.544e-05,2]
[420952911,1776791539671,747.7613583,7.544e-05,2]
[420952912,1776791539706,747.7613583,7.544e-05,2]
[420952913,1776791539742,747.7613583,7.544e-05,2]
[420952914,1776791539780,747.7613583,7.544e-05,2]
[420952915,1776791539824,747.7613583,7.544e-05,2]
[420952916,1776791539866,207.9860425,7.544e-05,2]
[420952917,1776791539893,539.7753158,7.544e-05,2]
[420952918,1776791539978,747.7613583,7.544e-05,2]
[420952919,1776791540027,747.7613583,7.544e-05,2]
[420952920,1776791540067,747.7613583,7.544e-05,2]
[420952921,1776791540114,747.7613583,7.544e-05,2]
[420952922,1776791540154,747.7613583,7.544e-05,2]
[420952923,1776791540204,747.7613583,7.544e-05,2]
[420952924,1776791540239,747.7613583,7.544e-05,2]
[420952925,1776791540278,747.7613583,7.544e-05,2]
[420952926,1776791540322,747.7613583,7.544e-05,2]
[420952927,1776791540363,747.7613583,7.544e-05,2]
[420952928,1776791540412,747.7613583,7.544e-05,2]
[420952929,1776791540454,747.7613583,7.544e-05,2]
[420952930,1776791540526,487.0983846,7.544e-05,2]
[420952931,1776791540557,260.6629737,7.544e-05,2]
[420952932,1776791540611,747.7613583,7.544e-05,2]
[420952933,1776791540649,747.7613583,7.544e-05,2]
[420952934,1776791540742,747.7613583,7.544e-05,2]
[420952935,1776791540811,747.7613583,7.544e-05,2]
[420952936,1776791540866,747.7613583,7.544e-05,2]
[420952937,1776791540904,747.7613583,7.544e-05,2]
[420952938,1776791541324,747.7613583,7.544e-05,2]
[420952939,1776791541367,747.7613583,7.544e-05,2]
[420952940,1776791541410,747.7613583,7.544e-05,2]
[420952941,1776791541457,747.7613583,7.544e-05,2]
[420952942,1776791541506,747.7613583,7.544e-05,2]
[420952943,1776791541553,747.7613583,7.544e-05,2]
[420952944,1776791541607,747.7613583,7.544e-05,2]
[420952946,1776791558321,756.16317132,7.544e-05,2]
[420952947,1776791558362,756.16317132,7.544e-05,2]
[420952948,1776791558401,756.16317132,7.544e-05,2]
[420952949,1776791558441,756.16317132,7.544e-05,2]
[420952950,1776791558501,756.16317132,7.544e-05,2]
[420952951,1776791558547,756.16317132,7.544e-05,2]
[420952952,1776791558600,756.16317132,7.544e-05,2]
[420952953,1776791558688,756.16317132,7.544e-05,2]
[420952954,1776791558746,756.16317132,7.544e-05,2]
[420952955,1776791558787,756.16317132,7.544e-05,2]
[420952956,1776791558831,756.16317132,7.544e-05,2]
[420952957,1776791558871,756.16317132,7.544e-05,2]
[420952958,1776791560625,756.16317132,7.544e-05,2]
[420952959,1776791560667,169.88877284,7.544e-05,2]
[420952960,1776791560699,586.27439848,7.544e-05,2]
[420952961,1776791560746,756.16317132,7.544e-05,2]
[420952962,1776791560784,756.16317132,7.544e-05,2]
[420952963,1776791560828,756.16317132,7.544e-05,2]
[420952964,1776791560871,756.16317132,7.544e-05,2]
[420952965,1776791560925,756.16317132,7.544e-05,2]
[420952966,1776791560975,756.16317132,7.544e-05,2]
[420952967,1776791561017,756.16317132,7.544e-05,2]
[420952968,1776791561063,756.16317132,7.544e-05,2]
[420952969,1776791561100,756.16317132,7.544e-05,2]
[420952970,1776791561140,756.16317132,7.544e-05,2]
[420952971,1776791561198,756.16317132,7.544e-05,2]
[420952972,1776791561241,756.16317132,7.544e-05,2]
[420952973,1776791561284,339.77754568,7.544e-05,2]
[420952974,1776791561315,416.38562564,7.544e-05,2]
[420952975,1776791561353,756.16317132,7.544e-05,2]
[420952976,1776791561396,756.16317132,7.544e-05,2]
[420952977,1776791561433,756.16317132,7.544e-05,2]
[420952978,1776791561501,756.16317132,7.544e-05,2]
[420952979,1776791561546,756.16317132,7.544e-05,2]
[420952980,1776791561584,756.16317132,7.544e-05,2]
[420952981,1776791561626,756.16317132,7.544e-05,2]
[420952982,1776791561675,756.16317132,7.544e-05,2]
[420952983,1776791561721,756.16317132,7.544e-05,2]
[420952984,1776791561768,756.16317132,7.544e-05,2]
[420952985,1776791561815,756.16317132,7.544e-05,2]
[420952987,1776791581274,300.0,7.544e-05,2]
[420952988,1776791586603,497.0,7.544e-05,3]
[420952989,1776791605340,468.82948984,7.535e-05,2]
[420952990,1776791605365,10000.01,7.535e-05,2]
[420952991,1776791605389,10000.01,7.535e-05,2]
[420952992,1776791605416,10000.01,7.535e-05,2]
[420952993,1776791605440,10000.01,7.535e-05,2]
[420952994,1776791605464,5302.53725932,7.535e-05,2]
[420952995,1776791625605,211.45653831,7.544e-05,2]
[420952996,1776791627312,179.23867781,7.544e-05,2]
[420952997,1776791632086,500.0,7.544e-05,2]
[420952998,1776791632119,445.48244637,7.544e-05,2]
[420952999,1776791632156,500.0,7.544e-05,2]
[420953000,1776791632197,500.0,7.544e-05,2]
[420953001,1776791632252,500.0,7.544e-05,2]
[420953002,1776791632284,500.0,7.544e-05,2]
[420953003,1776791632322,500.0,7.544e-05,2]
[420953004,1776791639600,500.0,7.544e-05,2]
[420953005,1776791639659,500.0,7.544e-05,2]
[420953006,1776791639711,293.53715633,7.544e-05,2]
[420953007,1776791643116,632.94644874,7.544e-05,2]
[420953008,1776791643257,249.0,7.544e-05,2]
[420953009,1776791645239,472.0,7.544e-05,3]
[420953010,1776791664458,396.72516008,7.544e-05,2]
[420953011,1776791668439,165.97374028,7.544e-05,2]
[420953012,1776791668478,444.49027667,7.544e-05,2]
[420953013,1776791668520,500.0,7.544e-05,2]
[420953014,1776791668672,500.0,7.544e-05,2]
[420953015,1776791668708,500.0,7.544e-05,2]
[420953016,1776791668778,500.0,7.544e-05,2]
[420953017,1776791668838,258.09769316,7.544e-05,2]
[420953018,1776791701221,251.06186225,7.544e-05,2]
[420953019,1776791701245,48.93813775,7.544e-05,2]
[420953020,1776791701855,150.0,7.544e-05,2]
[420953021,1776791705622,449.0,7.544e-05,3]
[420953022,1776791707872,157.0,7.544e-05,3]
[420953023,1776791761554,300.0,7.544e-05,2]
[420953024,1776791767000,426.0,7.544e-05,3]
[420953026,1776791814257,164.0,7.544e-05,3]
[420953027,1776791827002,405.0,7.544e-05,3]
[420953028,1776791853926,1093.8672339,7.544e-05,2]
[420953029,1776791881930,150.0,7.544e-05,2]
[420953030,1776791887923,385.0,7.544e-05,3]
[420953031,1776791941919,300.0,7.544e-05,2]
[420953032,1776791947157,366.0,7.544e-05,3]
[420953033,1776792012154,347.0,7.544e-05,3]
[420953034,1776792012260,157.0,7.544e-05,3]
[420953035,1776792061137,300.0,7.544e-05,2]
[420953036,1776792065616,500.0,7.544e-05,2]
[420953037,1776792065697,580.66838521,7.544e-05,2]
[420953038,1776792066506,500.0,7.544e-05,2]
[420953039,1776792067198,330.0,7.544e-05,3]
[420953040,1776792077993,500.0,7.544e-05,2]
[420953041,1776792078030,500.0,7.544e-05,2]
[420953042,1776792078078,500.0,7.544e-05,2]
[420953043,1776792078132,500.0,7.544e-05,2]
[420953044,1776792078177,500.0,7.544e-05,2]
[420953045,1776792078243,390.53624314,7.544e-05,2]
[420953046,1776792078271,109.46375686,7.544e-05,2]
[420953047,1776792078321,500.0,7.544e-05,2]
[420953048,1776792078398,281.19540973,7.544e-05,2]
[420953049,1776792078462,500.0,7.544e-05,2]
[420953050,1776792078516,500.0,7.544e-05,2]
[420953051,1776792078588,500.0,7.544e-05,2]
[420953052,1776792078742,500.0,7.544e-05,2]
[420953053,1776792078829,500.0,7.544e-05,2]
[420953054,1776792084285,-152.0,7.561e-05,7]
[420953055,1776792093826,2902.393,7.394e-05,2]
[420953056,1776792093892,179.81,7.394e-05,2]
[420953057,1776792099740,277.70761206,7.544e-05,2]
[420953058,1776792117695,-38086.0,7.545e-05,2]
[420953059,1776792119303,382.83138293,7.544e-05,2]
[420953060,1776792119345,2866.60883842,7e-05,2]
[420953061,1776792119368,453.35116158,7e-05,2]
[420953062,1776792127520,493.0,7e-05,3]
[420953063,1776792142047,165.0,7e-05,3]
[420953064,1776792146113,398.00832206,7.544e-05,2]
[420953065,1776792146145,500.0,7.544e-05,2]
[420953066,1776792146191,500.0,7.544e-05,2]
[420953067,1776792146223,542.53299788,7.544e-05,2]
[420953068,1776792146261,500.0,7.544e-05,2]
[420953069,1776792146294,500.0,7.544e-05,2]
[420953070,1776792146357,500.0,7.544e-05,2]
[420953071,1776792146396,358.89607913,7.544e-05,2]
[420953072,1776792146438,500.0,7.544e-05,2]
[420953073,1776792146492,500.0,7.544e-05,2]
[420953074,1776792146551,500.0,7.544e-05,2]
[420953075,1776792146595,500.0,7.544e-05,2]
[420953076,1776792146650,500.0,7.544e-05,2]
[420953077,1776792146720,500.0,7.544e-05,2]
[420953078,1776792146763,500.0,7.544e-05,2]
[420953079,1776792181638,311.14319367,7.544e-05,2]
[420953080,1776792185237,468.0,7.544e-05,3]
[420953081,1776792242328,150.0,7.544e-05,2]
[420953082,1776792243231,249.0,7.544e-05,2]
[420953083,1776792247471,411.07824568,7.544e-05,3]
[420953084,1776792247496,33.92175432,7.544e-05,3]
[420953085,1776792309878,156.0,7.544e-05,3]
[420953086,1776792313437,423.0,7.544e-05,3]
[420953087,1776792314966,179.48,7.5e-05,2]
[420953088,1776792368100,402.0,7.544e-05,3]
[420953089,1776792398132,-190.17651296,7.545e-05,2]
[420953090,1776792421667,150.0,7.544e-05,2]
[420953091,1776792425483,500.0,7.544e-05,2]
[420953092,1776792425532,606.46786965,7.544e-05,2]
[420953093,1776792428128,381.0,7.544e-05,3]
[420953094,1776792438414,500.0,7.544e-05,2]
[420953095,1776792438461,500.0,7.544e-05,2]
[420953096,1776792438518,293.34349876,7.544e-05,2]
[420953097,1776792445983,194.39532844,7.544e-05,2]
[420953098,1776792484472,182.14,6.972e-05,2]
[420953099,1776792487326,362.0,7.544e-05,3]
[420953100,1776792490832,-777.0,7.545e-05,2]
[420953101,1776792490863,-307.70672994,7.545e-05,2]
[420953102,1776792505768,-152.0,7.546e-05,7]
[420953103,1776792514768,217.80023557,7.544e-05,2]
[420953104,1776792547639,344.0,7.544e-05,3]
[420953105,1776792610348,327.0,7.544e-05,3]
[420953106,1776792612241,156.0,7.544e-05,3]
[420953116,1776792631794,-1000.0,7.643e-05,2]
[420953117,1776792631804,-5773.14691072,8.178e-05,2]
[420953118,1776792631854,-2506.52712128,8.178e-05,2]
[420953119,1776792631863,-993.2925159,8.298e-05,2]
[420953120,1776792631873,-193.0,8.298e-05,2]
[420953121,1776792631882,-500.0,8.3e-05,2]
[420953122,1776792631892,-327.0,8.305e-05,3]
[420953123,1776792631902,-907.2740032,8.384e-05,2]
[420953124,1776792631911,-500.0,8.407e-05,2]
[420953125,1776792631921,-500.0,8.407e-05,2]
[420953126,1776792631930,-500.0,8.407e-05,2]
[420953127,1776792631940,-2226.89,8.914e-05,2]
[420953128,1776792631949,-2034.55,8.988e-05,2]
[420953129,1776792631958,-150.0,9e-05,2]
[420953130,1776792631968,-150.0,9e-05,2]
[420953131,1776792631977,-150.0,9e-05,2]
[420953132,1776792631988,-150.0,9e-05,2]
[420953133,1776792631998,-150.0,9e-05,2]
[420953134,1776792632009,-150.0,9e-05,2]
[420953135,1776792632018,-150.0,9e-05,2]
[420953136,1776792632028,-217.63130726,9e-05,2]
[420953137,1776792632037,-257.61327442,9e-05,2]
[420953138,1776792632046,-150.0,9e-05,2]
[420953139,1776792632056,-327.0,9.066e-05,3]
[420953140,1776792632066,-993.29251589,9.149e-05,2]
[420953141,1776792632075,-150.0,9.266e-05,2]
[420953142,1776792632084,-952.69,9.267e-05,2]
[420953143,1776792632094,-1500.0,9.267e-05,2]
[420953144,1776792632104,-500.0,9.267e-05,2]
[420953145,1776792632113,-500.0,9.37e-05,2]
[420953146,1776792632122,-500.0,9.458e-05,2]
[420953147,1776792632132,-578.20924308,9.458e-05,2]
[420953148,1776792632142,-200.0,9.458e-05,2]
[420953149,1776792632151,-721.12765535,9.458e-05,2]
[420953150,1776792632161,-151.0,9.458e-05,2]
[420953152,1776792632170,-209.40437684,9.458e-05,2]
[420953154,1776792632179,-174.61919141,9.458e-05,2]
[420953156,1776792632189,-225.60716926,9.458e-05,2]
[420953158,1776792632198,-235.75327194,9.458e-05,2]
[420953159,1776792632207,-244.476143,9.458e-05,2]
[420953161,1776792632216,-253.52176029,9.458e-05,2]
[420953163,1776792632225,-262.90206542,9.458e-05,2]
[420953165,1776792632235,-272.62944185,9.458e-05,2]
[420953167,1776792632244,-282.71673119,9.458e-05,2]
[420953169,1776792632254,-293.17725025,9.458e-05,2]
[420953170,1776792632263,-304.02480851,9.458e-05,2]
[420953171,1776792632273,-315.27372642,9.458e-05,2]
[420953172,1776792632282,-326.9388543,9.458e-05,2]
[420953173,1776792632291,-339.03559191,9.458e-05,2]
[420953174,1776792632301,-166.66,9.545e-05,2]
[420953175,1776792632310,-327.0,9.827e-05,3]
[420953176,1776792632319,-260.0,9.863e-05,2]
[420953177,1776792632330,-250.0,9.863e-05,2]
[420953178,1776792632341,-250.0,9.863e-05,2]
[420953179,1776792632351,-4245.3,9.874e-05,2]
[420953180,1776792632360,-969.18,9.874e-05,2]
[420953181,1776792632370,-4647.8221142,9.91e-05,2]
[420953182,1776792632380,-500.42337708,9.973e-05,2]
[420953183,1776792632389,-500.0,9.973e-05,2]
[420953184,1776792632399,-500.0,9.973e-05,2]
[420953185,1776792632408,-500.0,9.973e-05,2]
[420953186,1776792632417,-500.0,9.973e-05,2]
[420953187,1776792632426,-500.55144924,9.973e-05,2]
[420953188,1776792632436,-41724.48856998,0.0001,2]
[420953189,1776792632445,-895.84028195,0.0001,2]
[420953190,1776792632455,-2758.53683048,0.0001,2]
[420953191,1776792632464,-16200.41774914,0.0001,2]
[420953192,1776792632474,-151.0,0.0001,2]
[420953193,1776792632483,-151.0,0.0001,2]
[420953194,1776792632493,-152.00189941,0.0001,2]
[420953195,1776792632502,-241.44878082,0.0001,2]
[420953196,1776792632512,-264.14,0.0001,2]
[420953197,1776792632522,-500.0,0.0001,2]
[420953198,1776792632531,-151.0,0.0001,2]
[420953199,1776792632540,-500.0,0.0001,2]
[420953200,1776792632550,-500.0,0.0001,2]
[420953201,1776792632560,-500.0,0.0001,2]
[420953202,1776792632569,-500.0,0.0001,2]
[420953203,1776792632578,-500.0,0.0001,2]
[420953204,1776792632587,-500.0,0.0001,2]
[420953205,1776792632596,-500.0,0.0001,2]
[420953206,1776792632606,-500.0,0.0001,2]
[420953207,1776792632615,-500.0,0.0001,2]
[420953208,1776792632625,-151.0,0.0001,2]
[420953209,1776792632634,-500.0,0.0001,2]
[420953210,1776792632643,-151.0,0.0001,2]
[420953211,1776792632652,-151.0,0.0001,2]
[420953212,1776792632661,-151.0,0.0001,2]
[420953213,1776792632670,-151.0,0.0001,2]
[420953214,1776792632679,-151.0,0.0001,2]
[420953215,1776792632689,-151.0,0.0001,2]
[420953216,1776792632698,-151.0,0.0001,2]